bitfinex/quotes_ETHUSD_20240819
["timestamp","ask_amount","ask_price","bid_price","bid_amount"]
[1724066193703,3.87537,2580.4,2580.2,2.4417]
[1724066193903,3.87515,2580.6,2580.2,2.4417]
[1724066194306,7.29,2581.0,2580.3,2.4417]
[1724066194307,11.16447,2581.0,2580.3,2.4417]
[1724066194621,7.29,2581.3,2580.6,3.87498]
[1724066194844,3.87447,2581.0,2580.7,2.4417]
[1724066195526,7.29,2581.3,2580.7,2.4417]
[1724066195729,7.74856,2581.2,2580.7,2.4417]
[1724066196128,3.87425,2581.2,2580.7,6.31661]
[1724066196624,3.87432,2581.1,2580.7,2.4417]
[1724066197135,7.29,2581.3,2580.9,6.31626]
[1724066197443,7.74793,2581.4,2580.9,6.31626]
[1724066197741,3.87402,2581.3,2580.9,6.31626]
[1724066198044,3.87417,2581.2,2580.9,2.4417]
[1724066198422,3.87441,2581.1,2580.9,2.4417]
[1724066198720,3.87446,2581.0,2580.9,2.4417]
[1724066199054,3.87506,2580.6,2580.5,2.3753]
[1724066199202,3.87493,2580.7,2580.5,2.3753]
[1724066200427,3.87471,2580.9,2580.5,2.3753]
[1724066201734,3.87477,2580.8,2580.5,2.3753]
[1724066202351,3.87462,2580.9,2580.5,2.3753]
[1724066203247,7.74933,2580.9,2580.5,2.3753]
[1724066203476,7.74934,2580.9,2580.5,2.3753]
[1724066203747,3.87462,2580.9,2580.5,2.3753]
[1724066203938,7.74934,2580.9,2580.5,2.3753]
[1724066204135,3.87462,2580.9,2580.6,2.2973]
[1724066205318,3.87491,2580.7,2580.6,2.2973]
[1724066205928,4.262232,2580.8,2580.6,2.2973]
[1724066206125,3.87477,2580.8,2580.6,2.2973]
[1724066207251,3.87477,2580.8,2580.6,2.2473]
[1724066207969,3.87491,2580.7,2580.6,2.2473]
[1724066208523,3.87514,2580.6,2580.1,3.8758]
[1724066208723,3.87514,2580.6,2580.1,3.8757]
[1724066208923,7.74973,2580.8,2580.2,3.87554]
[1724066209348,3.87495,2580.7,2580.2,3.87554]
[1724066210224,3.87495,2580.7,2580.3,2.3927]
[1724066211724,3.87507,2580.6,2580.3,2.3927]
[1724066211948,3.87536,2580.4,2580.3,2.3927]
[1724066212226,3.87588,2580.1,2579.9,2.3308]
[1724066212960,3.87562,2580.3,2579.9,2.3308]
[1724066213333,3.87537,2580.4,2579.9,3.87608]
[1724066213656,3.87537,2580.4,2580.0,2.2684]
[1724066217543,3.87528,2580.5,2580.1,2.323]
[1724066219012,0.16307352,2580.4,2580.1,2.323]
[1724066220761,4.03843352,2580.4,2580.1,2.323]
[1724066223498,7.91388352,2580.4,2580.1,2.323]
[1724066223718,4.03843352,2580.4,2580.1,2.323]
[1724066223878,0.16307352,2580.4,2580.1,2.323]
[1724066224260,0.16307352,2580.4,2580.2,2.2539]
[1724066224462,0.16307352,2580.4,2580.2,6.12955]
[1724066224700,0.16307352,2580.4,2580.3,2.2539]
[1724066226259,4.03843352,2580.4,2580.3,2.2539]
[1724066226464,3.87565,2580.3,2579.9,2.4426]
[1724066226765,3.87574,2580.2,2579.9,2.4426]
[1724066226959,3.87562,2580.3,2579.9,2.4426]
[1724066227360,3.87567,2580.2,2579.9,2.4426]
[1724066228663,3.87598,2580.0,2579.1,2.2764]
[1724066228867,3.87617,2579.9,2579.1,2.2764]
[1724066229167,3.8769,2579.4,2579.1,2.2764]
[1724066229780,7.75337,2579.6,2579.1,2.2764]
[1724066230094,3.87666,2579.6,2579.1,2.2764]
[1724066230504,3.87676,2579.5,2579.1,2.2764]
[1724066230809,3.87676,2579.5,2579.0,7.95494]
[1724066230810,3.87649,2579.7,2579.2,3.87716]
[1724066231109,3.87649,2579.7,2579.3,2.2535]
[1724066231311,3.87666,2579.6,2579.3,2.2535]
[1724066231460,0.387666,2579.6,2579.3,2.2535]
[1724066231663,3.87642,2579.7,2579.3,2.2535]
[1724066232992,9.20874435,2580.2,2579.0,0.2]
[1724066232993,7.29,2580.2,2579.5,2.2586]
[1724066233197,7.29,2580.2,2579.7,2.2586]
[1724066233198,3.87577,2580.2,2579.7,2.2586]
[1724066233573,0.16307352,2580.4,2580.0,2.3231]
[1724066233765,4.03853352,2580.4,2580.0,2.3231]
[1724066233969,3.87552,2580.3,2580.0,2.3231]
[1724066234277,9.43433887,2580.4,2580.0,2.3231]
[1724066234682,3.87566,2580.2,2580.0,2.3231]
[1724066235622,3.87566,2580.2,2579.4,3.87677]
[1724066235623,3.87625,2579.9,2579.5,2.3231]
[1724066235824,4.263875,2579.9,2579.5,2.3231]
[1724066235984,7.75244,2579.9,2579.5,2.3231]
[1724066236692,3.87635,2579.8,2579.5,2.3231]
[1724066237114,3.87591,2580.1,2579.5,3.87664]
[1724066237315,3.87591,2580.1,2579.6,3.87654]
[1724066237534,7.75185,2580.1,2579.7,2.3751]
[1724066237991,3.87591,2580.1,2579.7,2.3751]
[1724066238700,3.87567,2580.2,2579.7,6.25151]
[1724066239808,4.03846352,2580.4,2580.0,2.2814]
[1724066241229,0.16307352,2580.4,2580.1,3.87573]
[1724066241594,0.16307352,2580.4,2580.0,2.2814]
[1724066241786,0.16307352,2580.4,2580.0,6.15735]
[1724066243043,4.03844352,2580.4,2580.0,2.2814]
[1724066243835,4.82980987,2580.4,2580.0,2.2814]
[1724066244037,3.87581,2580.1,2579.8,2.312]
[1724066244225,0.775153,2580.0,2579.8,2.312]
[1724066244536,3.87581,2580.1,2579.8,2.312]
[1724066246106,3.87567,2580.2,2579.8,2.312]
[1724066247495,3.87583,2580.1,2579.8,2.312]
[1724066248101,3.87598,2580.0,2579.8,2.312]
[1724066248330,3.87559,2580.3,2579.8,6.18825]
[1724066248511,3.87559,2580.3,2579.8,3.87625]
[1724066248817,4.74612099,2580.3,2579.9,2.37]
[1724066249016,4.74612099,2580.3,2579.9,2.32]
[1724066249444,0.16307352,2580.4,2580.0,3.87595]
[1724066250508,0.16307352,2580.4,2580.0,3.87588]
[1724066251038,4.03847352,2580.4,2580.0,3.87588]
[1724066251558,4.03847352,2580.4,2579.9,3.87608]
[1724066252017,4.03847352,2580.4,2580.0,2.3071]
[1724066255939,0.16307352,2580.4,2580.0,6.18306]
[1724066256144,0.16307352,2580.4,2580.1,3.8758]
[1724066256340,0.16307352,2580.4,2580.2,2.2673]
[1724066260448,0.16307352,2580.4,2580.3,6.16461]
[1724066260797,0.16307352,2580.4,2580.3,10.1176211]
[1724066261046,0.16307352,2580.4,2580.3,10.04012]
[1724066262851,0.16307352,2580.4,2580.3,10.59012]
[1724066267834,0.16307352,2580.4,2580.3,6.16461]
[1724066268236,0.16307352,2580.4,2580.3,2.2891]
[1724066270475,0.16307352,2580.4,2580.2,3.87559]
[1724066270476,0.16307352,2580.4,2580.0,2.3109]
[1724066270677,7.91404352,2580.4,2580.0,2.3109]
[1724066271064,3.87555,2580.3,2580.0,2.3109]
[1724066271439,4.82993787,2580.4,2580.0,2.3109]
[1724066271647,0.16307352,2580.4,2580.0,6.18678]
[1724066273275,0.16307352,2580.4,2580.0,2.3109]
[1724066274075,0.16307352,2580.4,2580.1,3.8757]
[1724066274645,0.16307352,2580.4,2580.0,2.3109]
[1724066275388,0.16307352,2580.4,2580.0,6.18678]
[1724066275682,4.03848352,2580.4,2580.0,2.3109]
[1724066276588,3.87552,2580.3,2579.8,3.87626]
[1724066277401,3.87566,2580.2,2579.7,6.1499]
[1724066277901,0.16307352,2580.4,2579.8,3.87625]
[1724066278040,0.16307352,2580.4,2580.0,3.87595]
[1724066278244,0.16307352,2580.4,2580.0,3.87588]
[1724066278680,0.16307352,2580.4,2580.1,2.2883]
[1724066278844,0.16307352,2580.4,2580.3,10.06332]
[1724066279045,0.16307352,2580.4,2580.3,14.48883]
[1724066279671,0.16307352,2580.4,2580.3,18.83665838]
[1724066280065,0.16307352,2580.4,2580.3,18.83666188]
[1724066280584,0.16307352,2580.4,2580.3,24.73386979]
[1724066280948,0.01027277,2580.4,2580.3,25.54236917]
[1724066281153,0.01027277,2580.4,2580.3,25.54593149]
[1724066281601,0.01027277,2580.4,2580.3,21.67042149]
[1724066281890,0.01027277,2580.4,2580.3,20.85835979]
[1724066282066,0.01027277,2580.4,2580.3,18.83666188]
[1724066283059,0.01027277,2580.4,2580.3,17.48883]
[1724066283254,0.01027277,2580.4,2580.3,14.96116245]
[1724066283554,0.01027277,2580.4,2580.3,13.06332]
[1724066285008,0.01027277,2580.4,2580.3,16.93883]
[1724066285865,0.01027277,2580.4,2580.3,20.85837891]
[1724066286104,0.01027277,2580.4,2580.3,17.48883]
[1724066286428,0.01027277,2580.4,2580.3,18.83665094]
[1724066286605,0.01027277,2580.4,2580.3,17.48883]
[1724066287355,0.01027277,2580.4,2580.3,13.61332]
[1724066287650,0.01027277,2580.4,2580.3,13.06332]
[1724066289006,0.01027277,2580.4,2580.3,3.87551]
[1724066289307,0.01027277,2580.4,2580.1,3.87568]
[1724066289494,0.01027277,2580.4,2580.2,6.87553]
[1724066290215,0.01027277,2580.4,2579.8,3.87624]
[1724066290216,0.01027277,2580.4,2579.8,3.87623]
[1724066290418,0.01027277,2580.4,2579.9,7.75214]
[1724066290584,0.01027277,2580.4,2580.0,3.87596]
[1724066290930,0.01027277,2580.4,2580.1,3.87572]
[1724066291134,0.01027277,2580.4,2580.1,7.75144]
[1724066291297,0.01027277,2580.4,2580.1,3.87572]
[1724066291493,0.01027277,2580.4,2580.1,7.75146]
[1724066291695,0.01027277,2580.4,2580.2,3.87558]
[1724066291947,0.01027277,2580.4,2580.3,3.87551]
[1724066293693,0.01027277,2580.4,2580.3,7.75102]
[1724066294229,0.01027277,2580.4,2580.3,3.87551]
[1724066297251,0.01027277,2580.4,2580.1,3.87568]
[1724066297554,0.01027277,2580.4,2580.3,3.87551]
[1724066299253,0.01027277,2580.4,2580.2,2.3354]
[1724066299438,0.01027277,2580.4,2580.1,3.87568]
[1724066299611,3.88564277,2580.4,2580.0,3.87596]
[1724066299818,0.38856428,2580.3,2579.9,11.2661]
[1724066300147,3.88564277,2580.4,2579.9,11.26598]
[1724066300452,3.87553,2580.3,2579.9,7.39]
[1724066301543,3.87553,2580.3,2579.8,3.87625]
[1724066302934,3.87553,2580.3,2579.9,3.87609]
[1724066306583,3.87553,2580.3,2579.8,3.87616]
[1724066306788,3.87553,2580.3,2579.8,7.75235]
[1724066307331,3.87553,2580.3,2579.8,3.87616]
[1724066308571,3.87553,2580.3,2579.7,2.4216]
[1724066308781,2.4182,2580.2,2579.8,3.87625]
[1724066308950,0.15265977,2580.2,2579.8,3.87625]
[1724066309352,4.02845977,2580.2,2579.7,3.87633]
[1724066311745,4.02845977,2580.2,2579.8,3.87625]
[1724066313625,0.15265977,2580.2,2580.1,7.75162]
[1724066314125,0.15265977,2580.2,2580.1,14.05113]
[1724066316072,0.15265977,2580.2,2580.1,10.17532]
[1724066316577,0.15265977,2580.2,2580.0,3.87595]
[1724066316777,0.15265977,2580.2,2580.0,7.75184]
[1724066317013,0.15265977,2580.2,2580.1,3.87581]
[1724066317431,0.15265977,2580.2,2580.0,3.87588]
[1724066317736,0.15265977,2580.2,2580.0,7.75175]
[1724066318124,0.15265977,2580.2,2580.1,3.87581]
[1724066324362,0.15265977,2580.2,2580.1,3.87581]
[1724066329090,0.15265977,2580.2,2580.1,7.75162]
[1724066329384,0.15265977,2580.2,2580.1,13.95643]
[1724066329779,0.15265977,2580.2,2580.1,19.36543]
[1724066330297,0.15265977,2580.2,2580.1,22.73524994]
[1724066330599,2.77e-06,2580.4,2580.3,15.50204]
[1724066330760,2.4234,2581.9,2581.5,3.87366]
[1724066330940,6.16555,2582.1,2581.5,3.87366]
[1724066331145,10.03844,2582.1,2581.5,3.87366]
[1724066331341,6.1655,2582.1,2581.5,3.87366]
[1724066331587,3.87298,2582.0,2581.5,3.87366]
[1724066331885,3.53482423,2582.7,2581.5,3.87366]
[1724066331886,3.87274,2582.2,2581.5,3.87366]
[1724066332098,0.774534,2582.1,2581.5,3.87366]
[1724066332735,0.774534,2582.1,2581.7,3.8734]
[1724066333243,4.647354,2582.1,2581.5,7.74722]
[1724066333443,3.87282,2582.1,2581.5,7.74722]
[1724066333643,3.87282,2582.1,2581.6,3.87353]
[1724066334274,3.8726,2582.3,2581.0,2.4518]
[1724066334275,2.3399,2582.3,2581.0,2.4518]
[1724066334591,3.87345,2581.7,2581.2,3.87415]
[1724066335091,3.87364,2581.6,2581.1,3.87421]
[1724066336568,3.87373,2581.5,2580.7,3.87482]
[1724066336825,3.87373,2581.5,2580.8,3.87467]
[1724066336826,3.87395,2581.4,2580.8,3.87467]
[1724066338518,3.87413,2581.3,2580.7,3.87482]
[1724066338693,2.4621,2581.4,2580.7,3.87482]
[1724066338877,6.58218,2581.4,2580.9,3.87461]
[1724066339404,4.12008,2581.4,2580.9,3.87461]
[1724066341276,7.99406,2581.4,2580.9,3.87461]
[1724066341677,4.12008,2581.4,2580.9,3.87461]
[1724066342589,4.12008,2581.4,2580.9,3.87454]
[1724066342793,4.12008,2581.4,2581.0,2.4344]
[1724066342982,4.12008,2581.4,2581.0,6.30886]
[1724066343516,0.24621,2581.4,2581.0,6.30886]
[1724066344214,3.87403,2581.3,2580.8,6.21344]
[1724066344420,3.87455,2581.0,2580.4,6.21396]
[1724066344723,4.262115,2580.9,2580.4,6.21396]
[1724066344891,3.87466,2580.9,2580.4,6.21396]
[1724066345216,3.87476,2580.8,2580.4,2.3387]
[1724066345933,3.87497,2580.7,2580.4,2.3387]
[1724066346231,3.87476,2580.8,2580.4,6.21405]
[1724066347437,3.87456,2581.0,2580.4,6.21405]
[1724066347603,3.87436,2581.1,2580.6,3.875]
[1724066348480,3.8739,2581.4,2580.8,2.4309]
[1724066348684,3.8739,2581.4,2580.0,8.73491]
[1724066348685,7.74878,2581.1,2580.6,3.87503]
[1724066348902,3.87447,2581.0,2580.6,3.87503]
[1724066350432,3.87447,2581.0,2580.5,2.4309]
[1724066350637,3.87461,2580.9,2580.5,2.4309]
[1724066350784,7.74931,2580.9,2580.5,2.4309]
[1724066350990,3.87501,2580.7,2580.2,6.18462]
[1724066351336,3.875,2580.7,2580.2,2.309]
[1724066351532,3.875,2580.7,2580.2,6.18459]
[1724066352549,3.875,2580.7,2580.3,3.8755]
[1724066353088,7.75001,2580.7,2580.2,2.309]
[1724066353326,3.87517,2580.6,2580.1,3.87569]
[1724066353643,3.87524,2580.5,2579.9,3.87597]
[1724066354087,3.87524,2580.5,2580.0,3.87588]
[1724066354600,3.87553,2580.3,2579.8,6.31653]
[1724066354797,3.87553,2580.3,2579.9,3.87611]
[1724066355005,3.87536,2580.4,2579.9,3.87611]
[1724066356005,3.87536,2580.4,2579.9,7.75214]
[1724066356204,4.7277441,2580.5,2580.0,3.87595]
[1724066356390,4.650031,2580.7,2580.1,3.87577]
[1724066356391,3.87515,2580.6,2580.1,3.87577]
[1724066356625,4.5735231,2580.6,2580.2,2.331]
[1724066357379,3.87515,2580.6,2580.2,2.331]
[1724066357683,3.87494,2580.7,2580.2,6.20662]
[1724066358199,3.87477,2580.8,2580.2,6.20662]
[1724066358200,3.87477,2580.8,2580.3,3.87549]
[1724066358616,7.74963,2580.8,2580.3,3.87549]
[1724066358823,7.74967,2580.8,2580.3,3.87549]
[1724066359136,7.74967,2580.8,2580.2,2.331]
[1724066359137,5.37997082,2580.8,2580.2,2.331]
[1724066359286,3.87507,2580.6,2580.2,2.331]
[1724066362586,3.87485,2580.8,2580.3,6.30402]
[1724066363286,7.7497,2580.8,2580.3,6.30402]
[1724066363488,3.87485,2580.8,2580.3,6.30402]
[1724066364615,7.74972,2580.8,2580.3,6.30402]
[1724066365146,3.87536,2580.5,2580.0,11.26586]
[1724066365440,3.87547,2580.4,2580.1,2.2663]
[1724066365991,3.87554,2580.3,2580.1,2.2663]
[1724066369035,3.87566,2580.2,2580.1,2.2663]
[1724066369217,3.87581,2580.1,2580.0,7.39]
[1724066369431,3.87568,2580.2,2580.0,7.39]
[1724066370024,3.87568,2580.2,2579.9,2.3439]
[1724066372450,3.87596,2580.1,2579.9,2.3439]
[1724066372635,3.87596,2580.0,2579.9,2.3439]
[1724066373060,7.75148,2580.2,2579.9,2.3439]
[1724066373227,3.87588,2580.1,2579.9,2.3439]
[1724066373427,3.87568,2580.2,2579.9,2.3439]
[1724066374377,7.75143,2580.2,2579.9,2.3439]
[1724066374878,3.87568,2580.2,2579.9,2.3439]
[1724066375080,7.75145,2580.2,2579.9,2.3439]
[1724066375286,3.87568,2580.2,2579.9,2.3439]
[1724066376864,3.87546,2580.4,2579.9,2.3439]
[1724066377030,7.7509,2580.4,2579.9,6.22]
[1724066378363,3.87554,2580.3,2579.9,6.22]
[1724066378975,3.87588,2580.1,2579.9,2.3439]
[1724066379188,7.75182,2580.1,2579.9,2.3439]
[1724066379404,7.7518,2580.1,2579.9,2.3439]
[1724066379728,3.87588,2580.1,2579.9,2.3439]
[1724066380383,7.75181,2580.1,2579.9,2.3439]
[1724066380587,3.87588,2580.1,2579.9,2.3439]
[1724066380748,7.75192,2580.0,2579.9,2.3439]
[1724066380938,3.87612,2579.9,2579.4,2.4801]
[1724066381139,3.87627,2579.8,2579.4,2.4801]
[1724066381542,3.87646,2579.7,2579.4,2.4801]
[1724066381747,3.87627,2579.8,2579.4,2.4801]
[1724066382656,3.87637,2579.8,2579.4,2.4801]
[1724066382855,3.87644,2579.7,2579.4,2.4801]
[1724066383099,3.87644,2579.7,2579.1,3.87722]
[1724066383100,3.87672,2579.5,2579.1,2.3455]
[1724066383239,3.87709,2579.3,2579.1,2.3455]
[1724066383443,3.87717,2579.2,2579.0,0.2]
[1724066384106,7.7542,2579.3,2579.0,0.2]
[1724066384252,3.87709,2579.3,2579.0,0.2]
[1724066384586,3.87724,2579.2,2579.0,0.2]
[1724066386010,3.87702,2579.3,2579.0,0.2]
[1724066386811,7.75412,2579.3,2579.0,0.2]
[1724066387015,3.87702,2579.3,2579.0,0.2]
[1724066388708,3.87681,2579.5,2579.1,2.3244]
[1724066388918,3.87651,2579.7,2579.1,6.20164]
[1724066389264,3.87657,2579.6,2579.1,6.20164]
[1724066389877,3.87672,2579.5,2579.1,2.3244]
[1724066390209,3.87703,2579.3,2579.1,2.3244]
[1724066390712,7.75413,2579.3,2579.1,2.3244]
[1724066390910,3.87703,2579.3,2579.1,2.3244]
[1724066391294,3.87717,2579.2,2579.0,0.2]
[1724066398824,7.75396,2579.4,2579.0,0.2]
[1724066399086,0.14074347,2579.1,2579.0,0.2]
[1724066399589,0.14074347,2579.1,2579.0,6.56017]
[1724066401331,0.14074347,2579.1,2579.0,10.43764]
[1724066403348,0.14074347,2579.1,2579.0,6.56017]
[1724066403562,0.14074347,2579.1,2579.0,2.6827]
[1724066405115,0.14074347,2579.1,2579.0,10.43764]
[1724066406428,0.14074347,2579.1,2579.0,6.56017]
[1724066406628,0.14074347,2579.1,2579.0,2.6827]
[1724066407560,7.89538347,2579.1,2579.0,0.2]
[1724066407720,8.68492182,2579.1,2579.0,0.2]
[1724066409268,14.90674182,2579.1,2579.0,0.2]
[1724066409761,19.33406182,2579.1,2579.0,0.2]
[1724066410862,23.42006182,2579.1,2579.0,0.2]
[1724066411042,19.33406182,2579.1,2579.0,0.2]
[1724066412117,15.45674182,2579.1,2579.0,0.2]
[1724066414025,14.90674182,2579.1,2579.0,0.2]
[1724066414568,11.02942182,2579.1,2579.0,0.2]
[1724066414746,8.68492182,2579.1,2579.0,0.2]
[1724066417254,7.89538347,2579.1,2579.0,0.2]
[1724066417624,4.01806347,2579.1,2579.0,0.2]
[1724066418052,0.14074347,2579.1,2579.0,0.2]
[1724066419178,0.14074347,2579.1,2579.0,2.6382]
[1724066419375,0.14074347,2579.1,2579.0,6.51567]
[1724066420176,0.14074347,2579.1,2579.0,2.6382]
[1724066421055,0.14074347,2579.1,2579.0,6.51567]
[1724066421847,0.14074347,2579.1,2579.0,2.6382]
[1724066424766,0.14074347,2579.1,2579.0,0.2]
[1724066425008,4.01806347,2579.1,2579.0,0.2]
[1724066425361,0.14074347,2579.1,2579.0,6.44197]
[1724066425555,0.14074347,2579.1,2579.0,10.31944]
[1724066429295,0.14074347,2579.1,2579.0,6.44197]
[1724066432265,0.14074347,2579.1,2579.0,2.5645]
[1724066432901,0.14074347,2579.1,2579.0,6.44197]
[1724066433221,0.14074347,2579.1,2579.0,2.5645]
[1724066434420,0.14074347,2579.1,2579.0,6.44197]
[1724066435612,0.14074347,2579.1,2579.0,10.31944]
[1724066435970,0.14074347,2579.1,2579.0,14.19691]
[1724066436327,0.14074347,2579.1,2579.0,57.97291474]
[1724066436638,0.00886286,2579.1,2579.0,60.80664481]
[1724066436801,0.00886286,2579.1,2579.0,59.99552764]
[1724066437002,0.00886286,2579.1,2579.0,60.8066516]
[1724066437372,3.87543,2580.4,2580.0,2.4991]
[1724066437580,3.87522,2580.5,2580.0,2.4991]
[1724066437901,3.87515,2580.6,2580.0,6.37504]
[1724066437902,3.87538,2580.4,2580.0,6.37504]
[1724066438484,8.866805,2580.6,2580.0,10.25098]
[1724066438667,4.991655,2580.6,2580.0,6.37496]
[1724066438874,3.87491,2580.7,2580.2,3.87553]
[1724066439614,7.75028,2580.6,2580.0,6.37497]
[1724066439785,3.87522,2580.5,2580.0,6.37497]
[1724066440126,3.87522,2580.5,2580.0,2.4991]
[1724066440321,6.026248,2581.0,2580.0,2.4991]
[1724066440322,3.87546,2580.4,2580.0,2.4991]
[1724066440471,7.75097,2580.4,2580.0,2.4991]
[1724066440838,3.87545,2580.4,2580.0,2.4991]
[1724066441811,0.387507,2580.5,2580.0,6.37506]
[1724066442161,4.262797,2580.5,2580.0,6.37506]
[1724066442310,3.87537,2580.4,2580.0,6.37506]
[1724066442509,3.87537,2580.4,2580.0,2.4991]
[1724066442949,7.75084,2580.4,2580.0,2.4991]
[1724066443149,7.75082,2580.4,2580.0,2.4991]
[1724066443508,3.87537,2580.4,2580.0,2.4991]
[1724066443914,7.75082,2580.4,2580.0,2.4991]
[1724066444113,3.87537,2580.4,2580.0,2.4991]
[1724066445137,7.75083,2580.4,2580.0,2.4991]
[1724066445448,3.87537,2580.4,2580.0,2.4991]
[1724066445655,3.87552,2580.3,2580.0,2.4991]
[1724066446551,3.87576,2580.2,2580.0,2.4991]
[1724066446706,4.6893597,2580.3,2580.0,2.4991]
[1724066446707,3.87552,2580.3,2580.0,2.4991]
[1724066446911,4.502968,2581.0,2580.0,2.4991]
[1724066446912,3.87518,2580.6,2580.1,2.2827]
[1724066447227,3.87491,2580.7,2580.2,3.87558]
[1724066447547,3.87491,2580.7,2580.3,2.2827]
[1724066447710,3.87514,2580.6,2580.3,2.2827]
[1724066447907,3.87522,2580.5,2580.3,2.2827]
[1724066448751,3.87536,2580.4,2580.3,2.2827]
[1724066449068,3.87522,2580.5,2580.3,2.2827]
[1724066450671,3.87499,2580.7,2580.3,2.2827]
[1724066450859,7.74998,2580.7,2580.3,2.2827]
[1724066451020,3.87499,2580.7,2580.3,2.2827]
[1724066451223,3.87509,2580.6,2580.3,2.2827]
[1724066452248,3.8753,2580.5,2580.3,2.2827]
[1724066454356,3.87509,2580.6,2580.3,2.2827]
[1724066454357,3.87536,2580.4,2580.3,2.2827]
[1724066455466,3.87509,2580.6,2580.3,2.2827]
[1724066455650,3.87525,2580.5,2580.3,2.2827]
[1724066456432,7.75056,2580.5,2580.3,2.2827]
[1724066457266,3.87536,2580.4,2580.3,2.2827]
[1724066459527,4.650306,2580.5,2580.3,2.2827]
[1724066459729,3.87525,2580.5,2580.3,2.2827]
[1724066461260,3.87506,2580.6,2580.3,2.2827]
[1724066461903,3.87523,2580.5,2580.3,2.2827]
[1724066462400,3.87502,2580.7,2580.3,2.2827]
[1724066462401,7.75004,2580.7,2580.3,2.2827]
[1724066462608,3.87508,2580.6,2580.3,2.2827]
[1724066463803,3.87502,2580.7,2580.3,2.2827]
[1724066464008,7.75006,2580.7,2580.3,2.2827]
[1724066464586,3.87502,2580.7,2580.3,2.2827]
[1724066464791,7.75002,2580.7,2580.3,2.2827]
[1724066464990,7.75003,2580.7,2580.3,2.2827]
[1724066466011,3.875,2580.7,2580.3,2.2827]
[1724066466213,3.875,2580.7,2580.3,6.23570052]
[1724066466381,3.87499,2580.7,2580.3,2.2827]
[1724066466574,7.75003,2580.7,2580.3,2.2827]
[1724066466776,3.87515,2580.6,2580.3,2.2827]
[1724066466984,0.775014,2580.6,2580.3,2.2827]
[1724066467192,3.87462,2580.9,2580.3,2.2827]
[1724066467375,3.87536,2580.4,2580.3,2.2827]
[1724066472567,9.7256,2581.2,2580.3,2.2827]
[1724066472770,3.87488,2580.8,2580.3,2.2827]
[1724066472984,3.87488,2580.8,2580.4,2.4981]
[1724066476117,3.87506,2580.6,2580.4,2.4981]
[1724066479121,7.74976,2580.8,2580.4,2.4981]
[1724066479489,3.87488,2580.8,2580.4,2.4981]
[1724066479715,3.87447,2581.0,2580.5,6.27644483]
[1724066479924,3.87432,2581.1,2580.6,6.24488]
[1724066480102,3.87432,2581.1,2580.7,2.3699]
[1724066480486,3.87432,2581.1,2580.7,6.24481]
[1724066480825,3.87419,2581.2,2580.8,3.87473]
[1724066480985,7.74825,2581.3,2580.8,3.87473]
[1724066481327,3.87411,2581.3,2580.9,2.4878]
[1724066481498,3.87434,2581.1,2580.9,2.4878]
[1724066481699,3.87417,2581.2,2580.9,2.4878]
[1724066482631,3.87417,2581.2,2580.5,11.26511]
[1724066482632,3.87425,2581.2,2580.6,3.87506]
[1724066482831,3.87361,2581.6,2580.9,2.3338]
[1724066483126,3.87432,2581.1,2580.9,2.3338]
[1724066483326,4.649173,2581.1,2580.9,2.3338]
[1724066483625,3.87432,2581.1,2580.9,2.3338]
[1724066484591,3.87417,2581.2,2580.9,2.3338]
[1724066488206,3.87431,2581.1,2580.9,2.3338]
[1724066489136,0.18063774,2581.0,2580.9,2.3338]
[1724066489634,4.84800951,2581.0,2580.7,2.3756]
[1724066489804,3.87462,2580.9,2580.7,2.3756]
[1724066490237,4.05512774,2581.0,2580.7,2.3756]
[1724066490444,0.18063774,2581.0,2580.7,2.3756]
[1724066490731,0.18063774,2581.0,2580.8,3.95212803]
[1724066490896,0.18063774,2581.0,2580.9,2.4905]
[1724066491329,0.18063774,2581.0,2580.9,6.36511]
[1724066491906,0.18063774,2581.0,2580.9,10.23972]
[1724066492145,0.18063774,2581.0,2580.9,13.23972]
[1724066492894,0.18063774,2581.0,2580.9,17.66433]
[1724066494412,0.18063774,2581.0,2580.9,13.78972]
[1724066495798,0.18063774,2581.0,2580.9,13.23972]
[1724066496519,0.18063774,2581.0,2580.9,9.36511]
[1724066498818,0.18063774,2581.0,2580.9,2.4905]
[1724066500470,4.05511774,2581.0,2580.7,3.0]
[1724066500617,4.05511774,2581.0,2580.6,5.3164]
[1724066500819,0.18063774,2581.0,2580.6,9.19146]
[1724066501454,0.18063774,2581.0,2580.7,3.87491]
[1724066501671,0.18063774,2581.0,2580.6,9.19146]
[1724066501672,0.18063774,2581.0,2580.6,13.06645]
[1724066501974,0.18063774,2581.0,2580.7,3.8749]
[1724066503920,0.18063774,2581.0,2580.6,9.19139]
[1724066503921,0.18063774,2581.0,2580.9,6.19191]
[1724066504156,0.18063774,2581.0,2580.9,2.3173]
[1724066504722,0.18063774,2581.0,2580.7,3.87491]
[1724066505861,0.18063774,2581.0,2580.6,5.4496]
[1724066506062,0.18063774,2581.0,2580.3,3.87548]
[1724066506063,3.87502,2580.7,2580.3,2.483]
[1724066506778,3.87524,2580.5,2580.0,11.26585]
[1724066506926,3.87524,2580.5,2580.1,2.483]
[1724066507131,3.87537,2580.4,2580.1,2.483]
[1724066508429,3.87521,2580.6,2580.1,2.483]
[1724066508638,3.87525,2580.5,2580.1,2.483]
[1724066508967,3.87499,2580.7,2580.1,6.3587]
[1724066509326,7.75001,2580.7,2580.2,3.87564]
[1724066509863,3.87499,2580.7,2580.2,3.87564]
[1724066510266,3.87513,2580.6,2580.1,2.483]
[1724066510472,3.87525,2580.5,2580.1,2.483]
[1724066510841,3.87488,2580.8,2580.2,3.87566]
[1724066510842,3.87507,2580.6,2580.2,3.87566]